bitfinex/quotes_SOLUSD_20240718
["timestamp","ask_amount","ask_price","bid_price","bid_amount"]
[1721322501668,15.54,157.32,157.27,44.3176]
[1721322501980,21.8967,157.32,157.28,6.358]
[1721322502155,15.54,157.32,157.28,6.358]
[1721322502477,35.54,157.33,157.3,6.3571]
[1721322503356,41.8961,157.33,157.29,22.251]
[1721322503555,35.54,157.33,157.3,6.3572]
[1721322503764,35.54,157.33,157.3,7.62851491]
[1721322505375,20.0,157.33,157.3,7.62851491]
[1721322505586,20.0,157.33,157.3,1.27131491]
[1721322505767,20.0,157.33,157.32,6.3564]
[1721322506364,20.0,157.33,157.31,22.2486]
[1721322506564,20.0,157.34,157.32,6.3564]
[1721322506872,6.3549,157.36,157.32,6.3564]
[1721322506873,20.0,157.35,157.32,6.3564]
[1721322507284,20.0,157.35,157.31,22.2486]
[1721322507491,41.8953,157.35,157.31,22.2486]
[1721322507991,35.54,157.35,157.32,6.3564]
[1721322508198,35.54,157.35,157.27,53.8564]
[1721322508199,30.48915402,157.42,157.33,17.16081453]
[1721322508396,16.482,157.43,157.36,6.3546]
[1721322508397,6.3531,157.41,157.36,6.3546]
[1721322508878,6.3533,157.4,157.36,7.6254431]
[1721322509472,16.482,157.43,157.37,6.3543]
[1721322509678,282.59973189,157.45,157.38,1.27068667]
[1721322509919,275.9786,157.45,157.38,1.27068667]
[1721322510586,15.54,157.43,157.38,1.27068667]
[1721322510776,20.0,157.42,157.38,23.16458667]
[1721322511578,20.0,157.42,157.4,6.3531]
[1721322511776,15.54,157.45,157.41,6.3527]
[1721322511997,15.1033,157.49,157.42,1.27036305]
[1721322511998,6.3504,157.47,157.42,1.27036305]
[1721322512308,6.3492,157.5,157.45,6.3511]
[1721322512472,22.2054,157.55,157.46,7.62051407]
[1721322512800,22.2054,157.55,157.45,6.3511]
[1721322513000,22.2054,157.55,157.46,1.26998312]
[1721322513191,15.54,157.51,157.46,1.26998312]
[1721322513784,15.54,157.5,157.46,1.26998312]
[1721322513992,6.3496,157.49,157.44,22.2301]
[1721322514299,15.8705,157.53,157.44,22.2301]
[1721322514812,6.3501,157.48,157.4,31.9246]
[1721322515005,6.3501,157.48,157.43,6.352]
[1721322515203,6.3496,157.49,157.44,6.3515]
[1721322515583,20.0,157.48,157.44,6.3515]
[1721322517206,6.3505,157.47,157.42,22.2327]
[1721322517396,6.3505,157.47,157.42,15.8806]
[1721322517708,20.0,157.46,157.42,22.2328]
[1721322517883,20.0,157.46,157.43,6.3519]
[1721322518301,20.0,157.47,157.43,6.3519]
[1721322518499,20.0,157.47,157.44,6.3515]
[1721322518703,20.0,157.49,157.45,6.351]
[1721322519001,20.0,157.49,157.46,22.227]
[1721322519215,26.3492,157.5,157.46,22.227]
[1721322519397,26.3492,157.5,157.46,15.8764]
[1721322520288,6.3496,157.49,157.46,15.8764]
[1721322520505,20.0,157.48,157.46,15.8764]
[1721322520790,6.3496,157.49,157.44,6.3514]
[1721322521007,20.0,157.48,157.44,6.3514]
[1721322521596,26.35,157.48,157.44,6.3514]
[1721322521811,6.3505,157.47,157.43,15.8795]
[1721322522011,20.0,157.46,157.43,15.8795]
[1721322522712,26.3508,157.46,157.42,6.352]
[1721322523011,20.0,157.46,157.43,7.62227981]
[1721322523213,20.0,157.46,157.44,6.3515]
[1721322523400,20.0,157.48,157.44,6.3515]
[1721322524120,20.0,157.48,157.42,15.8807]
[1721322524416,6.3507,157.47,157.42,22.233]
[1721322524598,26.3509,157.46,157.42,22.233]
[1721322524799,6.3509,157.46,157.42,22.233]
[1721322524999,6.3505,157.47,157.43,6.352]
[1721322525214,20.0,157.46,157.43,6.352]
[1721322526395,20.0,157.47,157.43,6.352]
[1721322528105,26.3504,157.47,157.43,6.352]
[1721322528412,20.0,157.47,157.43,6.352]
[1721322529422,20.0,157.47,157.4,16.0426]
[1721322529423,20.0,157.47,157.4,6.3531]
[1721322529615,35.6517,157.48,157.4,6.3531]
[1721322529818,60.8763,157.47,157.39,22.2371]
[1721322529999,20.0,157.46,157.36,32.4271]
[1721322530193,6.352,157.43,157.38,6.3537]
[1721322530515,20.0,157.42,157.38,6.3537]
[1721322531327,26.3525,157.42,157.38,6.3537]
[1721322531624,26.3525,157.42,157.37,6.3543]
[1721322532121,20.0,157.42,157.36,16.5408]
[1721322532318,6.3511,157.46,157.41,6.3525]
[1721322532616,20.0,157.45,157.43,6.3519]
[1721322532925,20.0,157.47,157.43,6.3519]
[1721322533594,20.0,157.47,157.42,15.8807]
[1721322533595,6.3508,157.46,157.42,15.8807]
[1721322533797,20.0,157.45,157.42,15.8807]
[1721322534109,26.3513,157.45,157.4,6.3531]
[1721322534298,6.3517,157.44,157.4,6.3531]
[1721322534492,6.3517,157.44,157.39,15.8835]
[1721322534493,20.0,157.43,157.39,22.237]
[1721322534699,20.0,157.43,157.36,32.4272]
[1721322534996,6.3525,157.42,157.36,32.4272]
[1721322535197,20.0,157.41,157.36,32.4272]
[1721322536128,20.0,157.41,157.38,6.3539]
[1721322536703,20.0,157.41,157.36,15.8864]
[1721322536897,6.3535,157.4,157.36,15.8864]
[1721322537103,26.3536,157.39,157.34,6.3555]
[1721322537828,6.3541,157.38,157.33,22.2454]
[1721322538001,20.0,157.37,157.33,22.2454]
[1721322538602,20.0,157.37,157.33,15.8894]
[1721322538828,31.02,157.39,157.29,15.8932]
[1721322539042,6.3551,157.36,157.31,6.3565]
[1721322539327,20.0,157.35,157.31,6.3565]
[1721322539629,6.3557,157.34,157.29,15.8932]
[1721322539843,26.3561,157.33,157.29,22.2507]
[1721322540123,20.0,157.33,157.29,22.2507]
[1721322541303,20.0,157.33,157.3,6.3572]
[1721322541518,26.3557,157.34,157.3,6.3572]
[1721322541718,20.0,157.34,157.3,6.3572]
[1721322542218,26.3556,157.34,157.29,15.8932]
[1721322542902,26.3556,157.34,157.29,22.2505]
[1721322544344,6.3567,157.32,157.27,6.3584]
[1721322544644,6.3567,157.32,157.26,15.8972]
[1721322544645,26.357,157.31,157.26,22.2558]
[1721322544939,20.0,157.3,157.25,6.3591]
[1721322545243,26.3573,157.3,157.25,6.3591]
[1721322545838,6.3577,157.29,157.25,6.3591]
[1721322546012,20.0,157.28,157.25,6.3591]
[1721322546711,20.0,157.29,157.25,6.3591]
[1721322547017,26.3577,157.29,157.24,22.2584]
[1721322547428,26.3578,157.29,157.24,15.8988]
[1721322547637,26.3578,157.29,157.24,22.2583]
[1721322547809,6.3582,157.28,157.24,15.8988]
[1721322548013,20.0,157.27,157.24,15.8988]
[1721322548230,26.3585,157.27,157.21,22.2622]
[1721322548547,26.3585,157.27,157.22,6.3603]
[1721322550137,20.0,157.27,157.24,6.3596]
[1721322550339,26.3586,157.27,157.22,6.3602]
[1721322550713,26.3586,157.27,157.23,6.36]
[1721322550926,20.0,157.27,157.23,15.8997]
[1721322551121,20.0,157.29,157.23,15.8997]
[1721322551542,6.3585,157.27,157.23,15.8997]
[1721322551730,20.0,157.26,157.23,22.2597]
[1721322552047,20.0,157.26,157.23,22.2594]
[1721322552224,20.0,157.31,157.23,22.2594]
[1721322552422,20.0,157.31,157.22,6.3604]
[1721322553246,6.3586,157.27,157.22,6.3604]
[1721322553433,20.0,157.26,157.22,6.3604]
[1721322553842,20.0,157.26,157.23,6.36]
[1721322554044,20.0,157.27,157.23,6.36]
[1721322554747,20.0,157.27,157.24,6.3595]
[1721322555153,26.3581,157.28,157.24,6.3595]
[1721322555360,6.3593,157.25,157.21,6.3605]
[1721322556469,6.359,157.26,157.21,6.3605]
[1721322556769,20.0,157.25,157.21,6.3605]
[1721322557945,26.3593,157.25,157.2,7.1751795]
[1721322558158,6.3605,157.22,157.2,0.8138795]
[1721322558849,20.0,157.25,157.2,0.8138795]
[1721322558850,6.3609,157.21,157.2,0.8138795]
[1721322559051,26.3609,157.21,157.2,0.8138795]
[1721322559845,20.0,157.21,157.2,0.8138795]
[1721322560372,26.3609,157.21,157.2,0.8138795]
[1721322562266,20.0,157.21,157.2,0.8138795]
[1721322563864,26.3609,157.21,157.2,0.8138795]
[1721322566284,71.3609,157.21,157.2,0.8138795]
[1721322567265,6.3629,157.17,157.13,6.3641]
[1721322567477,20.0,157.16,157.06,67.1044]
[1721322567779,20.0,157.16,157.14,6.3636]
[1721322567977,20.0,157.16,157.15,6.3633]
[1721322568881,20.0,157.16,157.14,6.3636]
[1721322569080,26.3622,157.18,157.13,22.2738]
[1721322569401,26.3622,157.18,157.13,15.9098]
[1721322569583,20.0,157.18,157.06,47.9944]
[1721322569769,20.0,157.21,157.1,15.9132]
[1721322569967,6.3626,157.17,157.12,6.3642]
[1721322570276,20.0,157.16,157.12,6.3642]
[1721322570683,20.0,157.17,157.12,6.3642]
[1721322571304,20.0,157.17,157.13,46.27275481]
[1721322571598,9.40734558,157.2,157.15,22.2711]
[1721322571894,20.0,157.19,157.15,15.9079]
[1721322572086,20.0,157.19,157.15,22.2711]
[1721322572270,6.3617,157.19,157.14,6.3636]
[1721322572476,20.0,157.18,157.12,15.9107]
[1721322572667,6.3622,157.18,157.12,15.9107]
[1721322572880,20.0,157.17,157.13,7.63667751]
[1721322573098,20.0,157.17,157.14,6.3636]
[1721322573275,20.0,157.17,157.13,7.63667751]
[1721322573478,26.3622,157.18,157.13,1.27267751]
[1721322573703,20.0,157.18,157.14,6.3637]
[1721322574208,20.0,157.18,157.14,15.9084]
[1721322574498,2.79384461,157.2,157.16,22.2696]
[1721322575501,2.79384461,157.2,157.16,15.9069]
[1721322575797,6.3619,157.19,157.13,31.3645]
[1721322576009,2.79384461,157.2,157.13,15.9099]
[1721322576180,20.0,157.18,157.13,15.9099]
[1721322576378,2.79384461,157.2,157.13,15.9099]
[1721322576573,6.3617,157.19,157.14,1.27258635]
[1721322576773,20.0,157.18,157.13,22.2738]
[1721322577193,26.3624,157.18,157.13,15.9099]
[1721322577389,20.0,157.18,157.1,15.9132]
[1721322577608,6.3626,157.17,157.11,1.27274673]
[1721322577813,20.0,157.16,157.12,15.9109]
[1721322577981,20.0,157.16,157.13,1.27259318]
[1721322578315,20.0,157.17,157.12,22.2751]
[1721322578468,6.363,157.16,157.12,15.9109]
[1721322578673,20.0,157.15,157.12,15.9109]
[1721322578873,20.0,157.15,157.1,6.3652]
[1721322580398,20.0,157.15,157.11,6.3649]
[1721322580968,20.0,157.16,157.12,6.3644]
[1721322581809,20.0,157.17,157.12,7.63712435]
[1721322582114,20.0,157.17,157.13,6.364]
[1721322582606,20.0,157.17,157.14,7.63637345]
[1721322582779,2.79384461,157.2,157.15,62.18056375]
[1721322583111,9.15514461,157.2,157.15,22.271]
[1721322583283,2.79384461,157.2,157.15,22.271]
[1721322583480,9.15514461,157.2,157.15,22.271]
[1721322583683,6.3617,157.19,157.15,15.908]
[1721322583905,6.3617,157.19,157.13,6.364]
[1721322584709,6.3622,157.18,157.13,6.364]
[1721322585100,26.3626,157.17,157.12,22.2752]
[1721322586489,6.363,157.16,157.12,15.9107]
[1721322586692,20.0,157.15,157.12,17.18345397]
[1721322587293,20.0,157.16,157.12,23.54775397]
[1721322587613,20.0,157.16,157.13,6.364]
[1721322587915,20.0,157.17,157.13,7.63669513]
[1721322588995,26.3625,157.17,157.13,1.27269513]
[1721322589186,26.3625,157.17,157.12,22.2751]
[1721322589709,20.0,157.17,157.15,6.3632]
[1721322589915,20.0,157.19,157.14,22.2727]
[1721322590093,20.0,157.19,157.12,6.3642]
[1721322590416,6.3625,157.17,157.12,6.3642]
[1721322590617,20.0,157.16,157.12,6.3642]
[1721322591713,20.0,157.16,157.14,22.2727]
[1721322591923,26.3622,157.18,157.11,15.9117]
[1721322592538,6.3626,157.17,157.12,6.3644]
[1721322592698,20.0,157.16,157.12,6.3644]
[1721322594415,20.0,157.16,157.12,7.63707306]
[1721322594912,20.0,157.16,157.13,6.3639]
[1721322595110,26.362,157.19,157.14,1.27256719]
[1721322595603,26.362,157.19,157.14,7.63626719]
[1721322595810,26.362,157.19,157.14,1.27256719]
[1721322595811,20.0,157.19,157.14,1.27256719]
[1721322596107,29.15514461,157.2,157.15,7.63551477]
[1721322596308,29.15514461,157.2,157.16,1.272407]
[1721322596517,22.79384461,157.2,157.16,1.272407]
[1721322596910,29.15514461,157.2,157.16,1.272407]
[1721322597099,29.15514461,157.2,157.15,15.908]
[1721322597299,6.3618,157.19,157.13,6.364]
[1721322597526,20.0,157.18,157.14,45.0]
[1721322598096,26.3621,157.18,157.13,6.364]
[1721322598405,6.3626,157.17,157.12,22.2749]
[1721322598615,20.0,157.16,157.12,15.9105]
[1721322598933,20.0,157.16,157.09,15.9136]
[1721322599101,20.0,157.16,157.11,6.3649]
[1721322599300,26.3631,157.16,157.1,6.3653]
[1721322599501,6.3637,157.15,157.09,22.2793]
[1721322599804,20.0,157.14,157.09,22.2793]
[1721322600007,20.0,157.14,157.1,7.63806623]
[1721322600235,20.0,157.14,157.11,1.27281637]
[1721322600439,26.3633,157.15,157.11,1.27281637]
[1721322600643,20.0,157.15,157.1,6.3652]
[1721322600825,26.3634,157.15,157.09,22.2792]
[1721322601321,26.3634,157.15,157.1,1.27286791]
[1721322601322,20.0,157.15,157.1,1.27286791]
[1721322601516,20.0,157.16,157.11,7.63762428]
[1721322601829,20.0,157.16,157.13,6.3641]
[1721322602008,20.0,157.17,157.14,6.3634]
[1721322602422,20.0,157.17,157.14,7.6359875]
[1721322602726,20.0,157.17,157.15,7.63568982]
[1721322602923,22.79384461,157.2,157.15,7.63568982]
[1721322603231,6.3618,157.19,157.13,22.2737]
[1721322603421,20.0,157.18,157.13,22.2737]
[1721322604235,20.0,157.18,157.11,6.3646]
[1721322604433,53.81384461,157.2,157.1,15.9131]
[1721322604638,15.9046,157.19,157.07,15.9161]
[1721322604935,20.0,157.18,157.07,15.9161]
[1721322605138,20.0,157.18,157.09,6.3657]
[1721322605640,6.3634,157.15,157.09,6.3657]
[1721322605822,20.0,157.14,157.09,6.3657]
[1721322606212,20.0,157.14,157.1,7.63806844]
[1721322606411,20.0,157.15,157.11,7.63766438]
[1721322606637,20.0,157.16,157.11,7.63766438]
[1721322607143,20.0,157.16,157.11,17.18486438]
[1721322607433,20.0,157.17,157.13,6.3639]
[1721322607732,20.0,157.18,157.13,6.3639]
[1721322607937,20.0,157.18,157.12,6.3645]
[1721322608111,22.79384461,157.2,157.12,6.3645]
[1721322608306,22.79384461,157.2,157.13,7.6367213]
[1721322608621,6.3618,157.19,157.13,7.6367213]
[1721322608832,26.3621,157.18,157.12,6.3644]
[1721322609029,6.3625,157.17,157.11,22.2768]
[1721322609225,20.0,157.16,157.11,22.2768]
[1721322610348,20.0,157.16,157.12,6.3645]
[1721322610540,20.0,157.17,157.12,6.3645]
[1721322611323,20.0,157.17,157.12,6.3645]
[1721322611641,26.3625,157.17,157.12,6.3645]
[1721322611838,20.0,157.17,157.12,6.3645]
[1721322612317,26.3626,157.17,157.11,22.2769]
[1721322613334,26.3626,157.17,157.12,6.3645]
[1721322613538,20.0,157.17,157.12,6.3645]
[1721322616624,26.2518,157.17,157.08,15.9149]
[1721322616819,6.3636,157.15,157.09,6.3656]
[1721322617030,26.3637,157.14,157.08,22.2809]
[1721322617255,20.0,157.13,157.08,22.2809]
[1721322617623,20.0,157.13,157.09,6.3657]
[1721322617824,20.0,157.13,157.1,6.3653]
[1721322618132,20.0,157.15,157.1,6.3653]
[1721322620329,26.3633,157.15,157.09,6.3656]
[1721322620753,20.0,157.15,157.1,6.3653]
[1721322621059,26.3633,157.15,157.1,6.3653]
[1721322623246,26.3633,157.15,157.09,6.3656]
[1721322623460,6.3641,157.13,157.08,15.9149]
[1721322623641,20.0,157.12,157.07,6.3664]
[1721322624132,6.3652,157.11,157.05,22.2846]
[1721322624335,20.0,157.1,157.05,22.2846]
[1721322626129,20.0,157.1,157.06,7.64016069]
[1721322626374,20.0,157.11,157.07,6.3665]
[1721322626751,20.0,157.11,157.06,7.64006069]
[1721322627076,20.0,157.11,157.06,6.3668]
[1721322627077,26.3649,157.11,157.06,6.3668]
[1721322627378,26.3649,157.11,157.05,22.2848]
[1721322628069,6.3653,157.1,157.05,22.2848]
[1721322628268,20.0,157.09,157.05,15.9176]
[1721322628644,20.0,157.09,157.05,22.2848]
[1721322629050,20.0,157.1,157.05,22.2848]
[1721322630273,20.0,157.1,157.04,7.1814795]
[1721322630274,26.3654,157.1,157.04,7.1814795]
[1721322630448,26.3654,157.1,157.05,6.3671]
[1721322630449,20.0,157.1,157.05,6.3671]
[1721322631474,20.0,157.1,157.06,7.64014745]
[1721322631670,20.0,157.1,157.06,17.19024745]
[1721322631869,20.0,157.12,157.06,1.27324745]
[1721322632069,20.0,157.13,157.09,6.3654]
[1721322632268,20.0,157.13,157.1,1.27292332]
[1721322632456,20.0,157.13,157.09,6.3654]
[1721322632656,20.0,157.13,157.08,22.281]
[1721322632973,20.0,157.13,157.09,1.2729232]
[1721322633164,20.0,157.13,157.08,22.281]
[1721322633975,26.3641,157.13,157.08,22.281]
[1721322634281,20.0,157.13,157.08,22.281]
[1721322634466,20.0,157.13,157.09,1.27292463]
[1721322634665,20.0,157.13,157.08,22.281]
[1721322635787,26.3642,157.13,157.08,15.915]
[1721322636385,26.3642,157.13,157.08,22.2811]
[1721322636561,20.0,157.13,157.09,6.3655]
[1721322636764,6.3636,157.15,157.09,6.3655]
[1721322636977,20.0,157.14,157.08,15.915]
[1721322637183,6.3644,157.13,157.08,15.915]
[1721322637366,20.0,157.12,157.08,22.2811]
[1721322638166,20.0,157.13,157.08,22.2811]
[1721322639453,20.0,157.13,157.08,15.915]
[1721322639662,20.0,157.16,157.09,45.0]
[1721322639861,26.3631,157.16,157.1,6.3653]
[1721322640184,26.3631,157.16,157.11,45.0]
[1721322640585,41.9431,157.16,157.11,45.0]
[1721322640780,15.58,157.15,157.11,45.0]
[1721322641284,20.0,157.14,157.11,45.0]
[1721322642182,20.0,157.14,157.11,51.3649]
[1721322642385,20.0,157.15,157.11,51.3649]
[1721322642761,20.0,157.15,157.11,66.9449]
[1721322642967,20.0,157.16,157.14,21.9435]
[1721322643199,15.8585,157.22,157.15,16.85255758]
[1721322643487,21.9409,157.21,157.15,39.12325758]
[1721322643786,6.3613,157.2,157.15,32.76025758]
[1721322644287,6.3613,157.2,157.15,17.18025758]
[1721322645395,20.0,157.19,157.15,17.18025758]
[1721322646268,26.3617,157.19,157.15,1.27255758]
[1721322647191,20.0,157.19,157.12,22.1107]
[1721322647486,6.3628,157.17,157.11,6.3648]
[1721322647702,20.0,157.16,157.11,6.3648]
[1721322648590,20.0,157.16,157.12,7.63702719]
[1721322648792,20.0,157.17,157.13,6.364]
[1721322648969,20.0,157.18,157.14,1.27247719]
[1721322649292,20.0,157.18,157.12,6.3644]
[1721322649293,26.3622,157.18,157.12,6.3644]
[1721322650136,20.0,157.18,157.13,7.63656701]
[1721322650384,20.0,157.18,157.14,51.3636]
[1721322650594,26.3618,157.19,157.14,45.0]
[1721322651164,6.3624,157.18,157.12,6.3644]
[1721322651397,20.0,157.17,157.12,6.3644]
[1721322651974,20.0,157.17,157.13,1.2725727]
[1721322652872,6.59258673,157.24,157.14,1.27258073]
[1721322653198,6.3605,157.22,157.16,6.3626]
[1721322653487,20.0,157.21,157.16,6.3626]
[1721322653997,26.3609,157.21,157.15,22.271]
[1721322654194,26.3609,157.21,157.16,45.0]
[1721322654895,26.3609,157.21,157.16,51.3629]
[1721322655594,20.0,157.21,157.16,51.3629]
[1721322655983,20.0,157.21,157.17,7.63467518]
[1721322656183,20.0,157.21,157.18,1.27227327]
[1721322656383,20.0,157.22,157.18,1.27227327]
[1721322656583,20.0,157.22,157.17,7.63467443]
[1721322656784,20.0,157.22,157.18,1.27227443]
[1721322656982,26.3605,157.22,157.18,1.27227443]
[1721322657397,26.3605,157.22,157.16,6.3627]
[1721322657696,6.3609,157.21,157.16,6.3627]
[1721322657899,20.0,157.2,157.15,22.271]
[1721322658596,20.0,157.2,157.16,6.3626]
[1721322658797,20.0,157.22,157.16,7.63487574]
[1721322658972,26.3607,157.22,157.16,6.3626]
[1721322659171,26.3607,157.22,157.15,22.271]
[1721322659382,6.361,157.21,157.15,22.271]
[1721322659579,20.0,157.2,157.15,22.271]
[1721322659976,6.3617,157.19,157.14,1.27227857]
[1721322660195,20.0,157.18,157.14,1.27246925]
[1721322660389,20.0,157.18,157.15,1.2724568]
[1721322660802,20.0,157.19,157.15,1.2724568]
[1721322661170,20.0,157.19,157.13,22.4014]
[1721322661370,20.0,157.19,157.14,7.63617096]
[1721322661597,20.0,157.19,157.15,1.27244675]
[1721322661801,20.0,157.19,157.14,22.2727]
[1721322662179,20.0,157.19,157.13,22.4015]
[1721322662381,20.0,157.23,157.13,22.4015]
[1721322662592,20.0,157.23,157.14,1.27248945]
[1721322662976,6.362,157.19,157.14,1.27248945]
[1721322663201,20.0,157.18,157.14,1.27248945]
[1721322664183,20.0,157.18,157.15,1.27257532]
[1721322664407,28.55551001,157.25,157.15,1.27257532]
[1721322664408,20.0,157.23,157.15,1.27257532]
[1721322664610,6.361,157.21,157.15,1.27234457]
[1721322664913,20.0,157.2,157.15,7.63564457]
[1721322665086,20.0,157.2,157.16,6.3629]
[1721322665414,20.0,157.21,157.16,6.3629]
[1721322665787,20.0,157.21,157.17,1.27231817]
[1721322666009,26.361,157.21,157.15,6.3632]
[1721322666212,21.9313,157.2,157.15,15.57]
[1721322666387,20.0,157.19,157.15,21.9333]
[1721322666711,41.931,157.21,157.15,21.9333]
[1721322667115,35.57,157.21,157.15,21.9333]
[1721322667293,20.0,157.21,157.16,21.9329]
[1721322667489,20.0,157.21,157.17,21.9322]
[1721322667688,20.0,157.22,157.18,16.84219774]
[1721322667995,20.0,157.23,157.18,16.84219774]
[1721322668497,20.0,157.23,157.18,23.20429774]
[1721322668883,20.0,157.23,157.18,16.84219774]
[1721322669383,20.0,157.23,157.19,15.57]
[1721322669589,20.0,157.24,157.2,16.84208274]
[1721322670301,28.36567957,157.29,157.23,15.57]
[1721322670479,15.0513,157.29,157.24,1.27182044]
[1721322670680,6.3572,157.3,157.25,15.57]
[1721322670915,6.3572,157.3,157.26,1.2716862]
[1721322671083,6.3572,157.3,157.26,16.8416862]
[1721322671282,6.3569,157.31,157.27,1.27160501]
[1721322671486,6.3564,157.32,157.27,32.65650501]
[1721322671687,15.57,157.35,157.29,15.57]
[1721322671893,6.3559,157.34,157.3,1.27128599]
[1721322672088,6.3559,157.34,157.3,16.84128599]
[1721322672388,6.3559,157.34,157.29,1.27124135]
[1721322672585,6.3553,157.35,157.3,1.27121878]
[1721322673003,6.3553,157.35,157.28,6.3579]
[1721322673212,20.0,157.34,157.29,6.3576]
[1721322673822,26.3557,157.34,157.27,15.8149]
[1721322674126,20.0,157.34,157.27,15.8149]
[1721322674298,20.0,157.36,157.27,15.8149]
[1721322674501,6.3569,157.31,157.27,15.8149]
[1721322674687,20.0,157.3,157.27,15.8149]
[1721322675306,6.3561,157.33,157.27,15.8149]
[1721322675506,26.3564,157.32,157.27,15.8149]
[1721322675731,6.3561,157.33,157.27,15.8149]
[1721322675927,20.0,157.31,157.27,15.8149]
[1721322676499,20.0,157.32,157.27,22.1733]
[1721322677427,20.0,157.33,157.27,22.1733]
[1721322677928,20.0,157.33,157.28,7.62923804]
[1721322678818,20.0,157.34,157.28,1.27143804]
[1721322679015,20.0,157.34,157.28,46.27143804]
[1721322679212,20.0,157.35,157.29,6.3576]
[1721322679536,26.3553,157.35,157.3,1.27121915]
[1721322679835,6.3558,157.34,157.28,6.3579]
[1721322680130,20.0,157.33,157.28,51.3579]
[1721322680635,6.3568,157.31,157.27,15.8149]
[1721322680821,20.0,157.33,157.28,1.27149457]
[1721322681135,6.3561,157.33,157.27,23.44468371]
[1721322681446,20.0,157.32,157.24,1.2713892]
[1721322681728,20.0,157.32,157.24,6.3595]
[1721322681729,6.3576,157.3,157.24,6.3595]
[1721322681939,20.0,157.29,157.25,1.27161369]
[1721322682110,20.0,157.29,157.24,6.3595]
[1721322682433,20.0,157.29,157.22,6.5148]
[1721322682749,6.3577,157.29,157.22,12.8749]
[1721322683121,20.0,157.28,157.23,7.63176576]
[1721322683440,20.0,157.28,157.24,1.27176373]
[1721322683943,20.0,157.28,157.23,6.36]
[1721322684327,20.0,157.28,157.24,7.63136398]
[1721322684648,20.0,157.29,157.25,6.3592]
[1721322684832,20.0,157.3,157.26,7.63035875]
[1721322685143,20.0,157.31,157.27,6.3584]
[1721322685344,26.3566,157.32,157.26,6.3588]
[1721322685554,6.3569,157.31,157.24,22.2578]
[1721322685841,20.0,157.3,157.24,22.2578]
[1721322686021,20.0,157.3,157.25,7.6307805]
[1721322686228,6.3573,157.3,157.24,15.8985]
[1721322686464,20.0,157.31,157.22,6.5148]
[1721322686615,6.3584,157.28,157.22,12.8752]
[1721322686942,35.8916,157.32,157.19,6.3613]
[1721322686943,6.3595,157.25,157.19,6.3613]
[1721322687442,20.0,157.24,157.19,6.3613]
[1721322688144,20.0,157.24,157.2,17.17465903]
[1721322688326,20.0,157.29,157.21,1.27196224]
[1721322688523,20.0,157.29,157.22,6.3604]
[1721322688744,26.3577,157.29,157.23,6.36]
[1721322688920,6.3581,157.28,157.22,6.3604]
[1721322689118,20.0,157.27,157.22,6.3604]
[1721322689817,20.0,157.27,157.24,6.3596]
[1721322690041,20.0,157.29,157.24,6.3596]
[1721322690252,16.0567,157.31,157.25,1.27171351]
[1721322690439,22.4135,157.31,157.25,7.63081351]
[1721322690635,6.3568,157.31,157.25,7.63081351]